bitfinex-derivatives/quotes_BTCF0:USTF0_20250508
["timestamp","ask_amount","ask_price","bid_price","bid_amount"]
[1746709841580,0.7937046,99337.0,99336.0,0.04055]
[1746709841884,0.7947046,99337.0,99336.0,0.03755]
[1746709843077,0.8766246,99337.0,99336.0,0.03655]
[1746709844288,0.7967046,99337.0,99336.0,0.03655]
[1746709844489,0.8766246,99337.0,99336.0,0.03655]
[1746709846196,0.7086246,99337.0,99336.0,0.03655]
[1746709847289,0.8150246,99337.0,99336.0,0.2378566]
[1746709847491,0.4542246,99337.0,99336.0,0.2378566]
[1746709848189,0.2862246,99337.0,99336.0,0.3346566]
[1746709849385,0.2832246,99337.0,99336.0,0.34892379]
[1746709849591,0.2033046,99337.0,99336.0,0.34892379]
[1746709849978,0.2033046,99337.0,99336.0,0.3336566]
[1746709850382,0.2023046,99337.0,99336.0,0.3336566]
[1746709850583,0.2013046,99337.0,99336.0,0.3336566]
[1746709850987,0.2013046,99337.0,99336.0,0.34939172]
[1746709851783,0.2013046,99337.0,99336.0,0.39939172]
[1746709851989,0.5620923,99345.0,99344.0,0.2012904]
[1746709852183,0.5620923,99345.0,99344.0,0.21702552]
[1746709853079,0.5620923,99345.0,99344.0,0.23234844]
[1746709853284,0.5620923,99345.0,99344.0,0.23334844]
[1746709853685,0.5620923,99345.0,99344.0,0.23434844]
[1746709854393,0.5620923,99345.0,99344.0,0.24328188]
[1746709854693,0.5620923,99345.0,99344.0,0.24528188]
[1746709856296,0.5620923,99345.0,99344.0,0.23534844]
[1746709857198,0.5931923,99345.0,99344.0,0.22002552]
[1746709859099,0.5931923,99345.0,99344.0,0.22002532]
[1746709860500,0.5931923,99345.0,99344.0,0.22002531]
[1746709861400,0.5931923,99345.0,99344.0,0.22002526]
[1746709862804,0.5931923,99345.0,99344.0,0.22002525]
[1746709866909,0.00251,99349.0,99347.0,0.2012823]
[1746709867204,0.2012803,99349.0,99348.0,0.24741715]
[1746709869308,0.2333803,99349.0,99348.0,0.24741715]
[1746709869500,0.2333803,99349.0,99348.0,0.28051715]
[1746709869700,0.2333803,99349.0,99348.0,0.28151715]
[1746709870099,0.2333803,99349.0,99348.0,0.28251715]
[1746709870801,0.2333803,99349.0,99348.0,0.28151715]
[1746709871007,0.2333803,99349.0,99348.0,0.28251715]
[1746709874106,0.2653803,99349.0,99348.0,0.01773485]
[1746709874304,0.2975803,99349.0,99348.0,0.01773485]
[1746709875011,0.6583803,99349.0,99348.0,0.01773485]
[1746709875912,0.6583803,99349.0,99348.0,0.002]
[1746709876110,0.8263803,99349.0,99348.0,0.002]
[1746709877006,0.2013046,99337.0,99336.0,0.03555]
[1746709877209,0.5621046,99337.0,99336.0,0.05128621]
[1746709878103,0.7951046,99337.0,99336.0,0.05128621]
[1746709878410,0.7951046,99337.0,99336.0,0.03555]
[1746709878805,0.7961046,99337.0,99336.0,0.03855]
[1746709879011,0.80611831,99337.0,99336.0,0.03855]
[1746709879207,0.80711831,99337.0,99336.0,0.04155]
[1746709879811,0.7981046,99337.0,99336.0,0.03955]
[1746709880010,0.7971046,99337.0,99336.0,0.03655]
[1746709880310,0.7981046,99337.0,99336.0,0.03655]
[1746709883913,0.8779046,99337.0,99336.0,0.03655]
[1746709884111,0.7099046,99337.0,99336.0,0.03655]
[1746709884410,0.7099046,99337.0,99336.0,0.09735]
[1746709886308,0.6772046,99337.0,99336.0,0.11308731]
[1746709887510,0.6772046,99337.0,99336.0,0.31439391]
[1746709887812,0.6772046,99337.0,99336.0,0.2986566]
[1746709888013,0.6772046,99337.0,99336.0,0.31439315]
[1746709888207,0.6449046,99337.0,99336.0,0.31439315]
[1746709888407,0.2841046,99337.0,99336.0,0.31439315]
[1746709889412,0.2841046,99337.0,99336.0,0.31439105]
[1746709890213,0.2841046,99337.0,99336.0,0.48239105]
[1746709890714,0.2841046,99337.0,99336.0,0.48239166]
[1746709891203,0.2841046,99337.0,99336.0,0.31439166]
[1746709892515,0.2841046,99337.0,99336.0,0.31410171]
[1746709892714,0.2841046,99337.0,99336.0,0.2986566]
[1746709893515,0.2043046,99337.0,99336.0,0.3141298]
[1746709896018,0.2043046,99337.0,99336.0,0.31398441]
[1746709899720,0.2043046,99337.0,99336.0,0.31399151]
[1746709901022,0.2043046,99337.0,99336.0,0.2986566]
[1746709911624,0.003,99337.0,99336.0,0.3586566]
[1746709911926,0.003,99337.0,99336.0,0.4086566]
[1746709912429,0.003,99337.0,99336.0,0.5766566]
[1746709912829,0.002,99337.0,99336.0,0.5786566]
[1746709913329,0.001,99337.0,99336.0,0.5756566]
[1746709913631,0.002,99337.0,99336.0,0.5786566]
[1746709914232,0.002,99337.0,99336.0,0.6793246]
[1746709914530,0.002,99337.0,99336.0,0.6823246]
[1746709915127,0.001,99337.0,99336.0,0.6793246]
[1746709915434,0.002,99337.0,99336.0,0.6823246]
[1746709917630,0.002,99337.0,99336.0,0.5816566]
[1746709921926,0.2033046,99337.0,99336.0,0.23965]
[1746709922128,0.2033046,99337.0,99336.0,0.2729566]
[1746709922434,0.2033046,99337.0,99336.0,0.2428566]
[1746709924436,0.2033046,99337.0,99336.0,0.2742566]
[1746709927941,0.002,99337.0,99336.0,0.2742566]
[1746709928440,0.2033046,99337.0,99336.0,0.2742566]
[1746709928641,0.2653046,99337.0,99336.0,0.2742566]
[1746709933434,0.064,99337.0,99336.0,0.2742566]
[1746709934442,0.2653046,99337.0,99336.0,0.2742566]
[1746709938741,0.0337,99337.0,99336.0,0.2742566]
[1746709938948,0.2667866,99346.0,99345.0,0.2012884]
[1746709939248,0.2667866,99346.0,99345.0,0.5620884]
[1746709939545,0.0318,99348.0,99347.0,0.2012843]
[1746709939845,0.0318,99348.0,99347.0,0.21701752]
[1746709940246,0.0318,99348.0,99347.0,0.24801752]
[1746709940450,0.0318,99348.0,99347.0,0.31801752]
[1746709940638,0.2330823,99348.0,99347.0,0.31801752]
[1746709941043,0.2330823,99348.0,99347.0,0.31901752]
[1746709941741,0.2340823,99348.0,99347.0,0.32001752]
[1746709942848,0.2340823,99348.0,99347.0,0.32201752]
[1746709943747,0.2350823,99348.0,99347.0,0.32201752]
[1746709945743,0.2350823,99348.0,99347.0,0.32201776]
[1746709946244,0.2350823,99348.0,99347.0,0.29101776]
[1746709947547,0.2350823,99348.0,99347.0,0.29101779]
[1746709948449,0.5958823,99348.0,99347.0,0.08973349]
[1746709948643,0.5958823,99348.0,99347.0,0.01973349]
[1746709949248,0.7638823,99348.0,99347.0,0.01973506]
[1746709951449,0.7638823,99348.0,99347.0,0.01973508]
[1746709955149,0.7638823,99348.0,99347.0,0.03503122]
[1746709957254,0.7638823,99348.0,99347.0,0.01973504]
[1746709958356,0.7638823,99348.0,99347.0,0.22101934]
[1746709958956,0.7638823,99348.0,99347.0,0.01973502]
[1746709959149,0.7638823,99348.0,99347.0,0.01973499]
[1746709962459,0.7638823,99348.0,99347.0,0.004]
[1746709962662,0.7638823,99348.0,99347.0,0.01973479]
[1746709963356,0.7638823,99348.0,99347.0,0.04993479]
[1746709963757,0.7638823,99348.0,99347.0,0.04993516]
[1746709965146,0.7638823,99348.0,99347.0,0.01973516]
[1746709965550,0.7638823,99348.0,99347.0,0.004]
[1746709965859,0.7948823,99348.0,99347.0,0.01973516]
[1746709967964,0.2013046,99337.0,99332.0,0.3608]
[1746709968164,0.2013046,99337.0,99333.0,0.0327]
[1746709968964,0.2675046,99337.0,99333.0,0.0327]
[1746709969164,0.4365046,99337.0,99336.0,0.03955]
[1746709969366,0.4375046,99337.0,99336.0,0.04355]
[1746709970773,0.4365046,99337.0,99336.0,0.03955]
[1746709970961,0.4375046,99337.0,99336.0,0.04055]
[1746709971370,0.4405046,99337.0,99336.0,0.03955]
[1746709971865,0.4405046,99337.0,99336.0,0.03655]
[1746709973071,0.4405046,99337.0,99336.0,0.05181924]
[1746709973263,0.4435046,99337.0,99336.0,0.05181924]
[1746709974175,0.4435046,99337.0,99336.0,0.03655]
[1746709975280,0.5229446,99337.0,99336.0,0.03655]
[1746709979977,0.5229446,99337.0,99336.0,0.05228692]
[1746709980771,0.5229446,99337.0,99336.0,0.06755484]
[1746709981470,0.5229446,99337.0,99336.0,0.05228692]
[1746709981674,0.5229446,99337.0,99336.0,0.05228729]
[1746709983381,0.5229446,99337.0,99336.0,0.03655]
[1746709983676,0.5229446,99337.0,99336.0,0.05224046]
[1746709984378,0.5229446,99337.0,99336.0,0.05223042]
[1746709984575,0.5229446,99337.0,99336.0,0.03655]
[1746709984776,0.5229446,99337.0,99336.0,0.05223039]
[1746709984976,0.5229446,99337.0,99336.0,0.03655]
[1746709986478,0.5229446,99337.0,99336.0,0.05228735]
[1746709986876,0.5229446,99337.0,99336.0,0.08318735]
[1746709987379,0.5229446,99337.0,99336.0,0.08316921]
[1746709987981,0.5229446,99337.0,99336.0,0.06745]
[1746709988386,0.4897446,99337.0,99336.0,0.06745]
[1746709988682,0.4567446,99337.0,99336.0,0.28449394]
[1746709989080,0.4567446,99337.0,99336.0,0.28449307]
[1746709989379,0.2887446,99337.0,99336.0,0.28449307]
[1746709989882,0.2887446,99337.0,99336.0,0.08318647]
[1746709991983,0.3506446,99337.0,99336.0,0.08318647]
[1746709994174,0.3202446,99337.0,99336.0,0.08318647]
[1746709994375,0.3202446,99337.0,99336.0,0.0829829]
[1746709997987,0.3531446,99337.0,99336.0,0.0829829]
[1746709999783,0.3531446,99337.0,99336.0,0.08318704]
[1746710000185,0.3201646,99337.0,99336.0,0.08318704]
[1746710001186,0.4881646,99337.0,99336.0,0.05228704]
[1746710002087,0.4881646,99337.0,99336.0,0.03655]
[1746710003190,0.4881646,99337.0,99336.0,0.05189568]
[1746710004981,0.4881646,99337.0,99336.0,0.05207525]
[1746710005794,0.6281646,99337.0,99336.0,0.05207525]
[1746710006894,0.6281646,99337.0,99336.0,0.05204482]
[1746710010096,0.6281646,99337.0,99336.0,0.03655]
[1746710013396,0.5488046,99337.0,99336.0,0.03655]
[1746710013595,0.6280446,99337.0,99336.0,0.03655]
[1746710013796,0.5488046,99337.0,99336.0,0.03655]
[1746710013995,0.6280446,99337.0,99336.0,0.03655]
[1746710014295,0.6280446,99337.0,99336.0,0.06805]
[1746710015097,0.4600446,99337.0,99336.0,0.06805]
[1746710015593,0.4922446,99337.0,99336.0,0.06805]
[1746710016197,0.4922446,99337.0,99336.0,0.11484669]
[1746710018197,0.6602446,99337.0,99336.0,0.08344669]
[1746710019099,0.4922446,99337.0,99336.0,0.08344669]
[1746710019294,0.4898986,99337.0,99336.0,0.08344669]
[1746710019800,0.4898986,99337.0,99336.0,0.05194669]
[1746710020004,0.4898986,99337.0,99336.0,0.03655]
[1746710024498,0.201333,99323.0,99322.0,0.00998832]
[1746710024698,0.2013431,99318.0,99317.0,0.0326]
[1746710024903,0.3413431,99318.0,99317.0,0.0326]
[1746710025294,0.3413431,99318.0,99317.0,0.04260234]
[1746710025803,0.3413431,99318.0,99317.0,0.24394744]
[1746710026001,0.3413431,99318.0,99317.0,0.27694744]
[1746710027193,0.3433431,99318.0,99317.0,0.28094744]
[1746710028406,0.2033431,99318.0,99317.0,0.28094744]
[1746710029102,0.2433431,99318.0,99317.0,0.28094744]
[1746710029407,0.25102326,99318.0,99317.0,0.28094744]
[1746710029805,0.25102326,99318.0,99317.0,0.31194744]
[1746710032422,0.21102326,99318.0,99317.0,0.31194744]
[1746710033109,0.25102326,99318.0,99317.0,0.31194744]
[1746710033910,0.21102326,99318.0,99317.0,0.31194744]
[1746710034511,0.2033431,99318.0,99317.0,0.31194744]
[1746710035411,0.2233431,99318.0,99317.0,0.31194744]
[1746710035711,0.2033431,99318.0,99317.0,0.31194744]
[1746710036910,0.2233431,99318.0,99317.0,0.31194744]
[1746710037413,0.2033431,99318.0,99317.0,0.31194744]
[1746710039013,0.2033431,99318.0,99317.0,0.11060234]
[1746710039414,0.2433431,99318.0,99317.0,0.11060234]
[1746710042211,0.2433431,99318.0,99317.0,0.31194744]
[1746710042515,0.2033431,99318.0,99317.0,0.31194744]
[1746710043011,0.2033431,99318.0,99317.0,0.67274744]
[1746710043208,0.2033431,99318.0,99317.0,0.69794145]
[1746710043612,0.2033431,99318.0,99317.0,0.69794139]
[1746710044116,0.2033431,99318.0,99317.0,0.86594139]
[1746710045713,0.002,99318.0,99317.0,0.89594139]
[1746710046716,0.2033431,99318.0,99317.0,0.89594139]
[1746710048917,0.2033431,99318.0,99317.0,0.8961305]
[1746710049312,0.2033431,99318.0,99317.0,0.7281305]
[1746710049618,0.2033431,99318.0,99317.0,0.6981305]
[1746710049810,0.2033431,99318.0,99317.0,0.7281305]
[1746710051519,0.2033431,99318.0,99317.0,0.71274744]
[1746710052923,0.2033431,99318.0,99317.0,0.70274744]
[1746710053525,0.2033431,99318.0,99317.0,0.34194744]
[1746710053725,0.2033431,99318.0,99317.0,0.67274744]
[1746710058528,0.2364431,99318.0,99317.0,0.67274744]
[1746710058829,0.2676431,99318.0,99317.0,0.57614744]
[1746710060130,0.2676431,99318.0,99317.0,0.64014744]
[1746710062731,0.2876431,99318.0,99317.0,0.64014744]
[1746710062932,0.2676431,99318.0,99317.0,0.64014744]
[1746710064532,0.0663,99318.0,99317.0,0.64014744]
[1746710064827,0.0351,99318.0,99317.0,0.71014744]
[1746710067131,0.0351,99318.0,99317.0,0.74014744]
[1746710068234,0.0351,99318.0,99317.0,0.90814744]
[1746710070138,0.0351,99318.0,99317.0,0.74014744]
[1746710071136,0.0351,99318.0,99317.0,0.90814744]
[1746710072229,0.2516297,99341.0,99340.0,0.2012887]
[1746710072539,0.2516297,99341.0,99340.0,0.5720887]
[1746710072733,0.2516297,99341.0,99340.0,0.5620887]
[1746710073729,0.2526297,99341.0,99340.0,0.5630887]
[1746710074438,0.2556297,99341.0,99340.0,0.5640887]
[1746710075129,0.2526297,99341.0,99340.0,0.5630887]
[1746710075334,0.2857297,99341.0,99340.0,0.5640887]
[1746710076332,0.2857297,99341.0,99340.0,0.3628]
[1746710076636,0.2857297,99341.0,99340.0,0.5640985]
[1746710077142,0.2857297,99341.0,99340.0,0.3628]
[1746710077338,0.8065297,99341.0,99340.0,0.002]
[1746710077633,0.6465297,99341.0,99340.0,0.002]
[1746710077841,0.0503298,99330.0,99324.0,0.15385273]
[1746710078033,0.2013289,99325.0,99324.0,0.15385273]
[1746710078341,0.4893289,99325.0,99324.0,0.15385273]
[1746710078539,0.5511289,99325.0,99324.0,0.15385273]
[1746710078939,0.5511289,99325.0,99324.0,0.15585273]
[1746710079441,0.5521289,99325.0,99324.0,0.15685273]
[1746710079640,0.5521289,99325.0,99324.0,0.35818363]
[1746710080042,0.5521289,99325.0,99324.0,0.2043309]
[1746710080542,0.5531289,99325.0,99324.0,0.2033309]
[1746710081039,0.5531289,99325.0,99324.0,0.2010339]
[1746710082143,0.5531289,99325.0,99324.0,0.001]
[1746710082643,0.5531289,99325.0,99324.0,0.2023309]
[1746710083843,0.5531289,99325.0,99324.0,0.001]
[1746710089649,0.5531289,99325.0,99324.0,0.2023309]
[1746710089852,0.5531289,99325.0,99324.0,0.001]
[1746710090152,0.5531289,99325.0,99324.0,0.2023309]
[1746710091152,0.3851289,99325.0,99324.0,0.2023309]
[1746710093154,0.5531289,99325.0,99324.0,0.2023309]
[1746710093746,0.5531289,99325.0,99324.0,0.001]
[1746710094052,0.5531289,99325.0,99324.0,0.2023309]
[1746710096355,0.6320489,99325.0,99324.0,0.001]
[1746710099556,0.6320489,99325.0,99324.0,0.0337]
[1746710101659,0.6320489,99325.0,99324.0,0.2350309]
[1746710102867,0.5519808,99325.0,99324.0,0.2350309]
[1746710103065,0.6309008,99325.0,99324.0,0.2350309]
[1746710106066,0.6309008,99325.0,99324.0,0.0337]
[1746710108467,0.6309008,99325.0,99324.0,0.2350309]
[1746710112673,0.6309008,99325.0,99324.0,0.0337]
[1746710113274,0.6309008,99325.0,99324.0,0.2350309]
[1746710114775,0.6309008,99325.0,99324.0,0.25020751]
[1746710117281,0.4629008,99325.0,99324.0,0.25020751]
[1746710117883,0.4629008,99325.0,99324.0,0.04887661]
[1746710118378,0.4629008,99325.0,99324.0,0.25020751]
[1746710118577,0.4629008,99325.0,99324.0,0.28330751]
[1746710119381,0.4629008,99325.0,99324.0,0.2681309]
[1746710119583,0.4629008,99325.0,99324.0,0.28357056]
[1746710121281,0.4629008,99325.0,99324.0,0.28363542]
[1746710123274,0.4629008,99325.0,99324.0,0.28366947]
[1746710124791,0.4629008,99325.0,99324.0,0.29903547]
[1746710125383,0.3515008,99325.0,99324.0,0.29903547]
[1746710125580,0.3115008,99325.0,99324.0,0.29903547]
[1746710125783,0.2811008,99325.0,99324.0,0.29903547]
[1746710126080,0.2811008,99325.0,99324.0,0.29923481]
[1746710128391,0.2811008,99325.0,99324.0,0.2992347]
[1746710129592,0.2021808,99325.0,99324.0,0.5092347]
[1746710129788,0.2021808,99325.0,99324.0,0.4792347]
[1746710130090,0.2021808,99325.0,99324.0,0.4672347]
[1746710133090,0.2021808,99325.0,99324.0,0.2992347]
[1746710133801,0.2021808,99325.0,99324.0,0.29923406]
[1746710134096,0.2021808,99325.0,99324.0,0.46723406]
[1746710136099,0.2021808,99325.0,99324.0,0.29923406]
[1746710140198,0.2342808,99325.0,99324.0,0.29923406]
[1746710140695,0.2342808,99325.0,99324.0,0.06480316]
[1746710140898,0.2666808,99325.0,99324.0,0.03210357]
[1746710141101,0.4346808,99325.0,99324.0,0.03210357]
[1746710141292,0.4666808,99325.0,99324.0,0.03210357]
[1746710141598,0.4666808,99325.0,99324.0,0.01673757]
[1746710141995,0.4666808,99325.0,99324.0,0.01638579]
[1746710142388,0.4666808,99325.0,99281.0,0.0503545]
[1746710142389,0.0503342,99322.0,99305.0,0.0314]
[1746710142698,0.2013573,99311.0,99310.0,0.2014564]
[1746710143592,0.2652573,99311.0,99310.0,0.2034564]
[1746710144101,0.2662573,99311.0,99310.0,0.2044564]
[1746710144897,0.2672573,99311.0,99310.0,0.2064564]
[1746710146602,0.2672573,99311.0,99310.0,0.2044564]
[1746710147599,0.2033573,99311.0,99310.0,0.2044564]
[1746710147898,0.2342573,99311.0,99310.0,0.2044564]
[1746710148196,0.2342573,99311.0,99310.0,0.5852564]
[1746710148197,0.0329,99311.0,99310.0,0.5852564]
[1746710148400,0.2342573,99311.0,99310.0,0.5852564]
[1746710148900,0.0329,99311.0,99310.0,0.5852564]
[1746710149498,0.2342573,99311.0,99310.0,0.5852564]
[1746710150601,0.002,99311.0,99310.0,0.5852564]
[1746710150790,0.002,99311.0,99310.0,0.8352564]
[1746710151192,0.002,99311.0,99310.0,1.0032564]
[1746710151901,0.002,99311.0,99310.0,0.8332564]
[1746710154391,0.002,99311.0,99310.0,0.84871646]
[1746710155200,0.002,99311.0,99310.0,0.84871389]
[1746710157001,0.002,99311.0,99310.0,0.84876739]
[1746710157189,0.002,99311.0,99310.0,0.8487674]
[1746710160596,0.002,99311.0,99310.0,0.8798674]
[1746710162505,0.0329,99311.0,99310.0,0.8798674]
[1746710162904,0.2342573,99311.0,99310.0,0.5319]
[1746710163201,0.2342573,99311.0,99310.0,0.0031]
[1746710164107,0.4022573,99311.0,99310.0,0.0031]
[1746710165500,0.4022573,99311.0,99310.0,0.2044593]
[1746710165703,0.2009,99311.0,99310.0,0.2644593]
[1746710166096,0.0329,99311.0,99310.0,0.2644593]
[1746710166404,0.0329,99311.0,99310.0,0.27711953]
[1746710167202,0.02715271,99311.0,99310.0,0.2670593]
[1746710168897,0.02715271,99311.0,99310.0,0.2970593]
[1746710169098,0.02715271,99311.0,99310.0,0.30700354]
[1746710169406,0.00251,99315.0,99314.0,0.2013512]
[1746710169706,0.2013327,99324.0,99321.0,0.201337]
[1746710169909,0.279895,99322.0,99321.0,0.201337]
[1746710170410,0.07856,99322.0,99321.0,0.201337]
[1746710170598,0.2013314,99324.0,99321.0,0.201337]
[1746710170599,0.233333,99323.0,99322.0,0.201335]
[1746710171214,0.401333,99323.0,99322.0,0.201335]
[1746710171394,0.0503357,99319.0,99314.0,0.002]
[1746710171594,0.2013492,99315.0,99314.0,0.002]
[1746710172094,0.3703492,99315.0,99314.0,0.004]
[1746710173005,0.3703492,99315.0,99314.0,0.002]
[1746710173608,0.3733492,99315.0,99314.0,0.002]
[1746710175002,0.3733492,99315.0,99314.0,0.2033512]
[1746710176606,0.3713492,99315.0,99314.0,0.2023512]
[1746710176910,0.3723492,99315.0,99314.0,0.3323512]
[1746710177111,0.3723492,99315.0,99314.0,0.2023512]
[1746710177617,0.171,99315.0,99314.0,0.2023512]
[1746710177912,0.3723492,99315.0,99314.0,0.2023512]
[1746710178104,0.2043492,99315.0,99314.0,0.2650512]
[1746710180013,0.2043492,99315.0,99314.0,0.2850512]
[1746710180412,0.2043492,99315.0,99314.0,0.2650512]
[1746710184615,0.2668492,99315.0,99314.0,0.2650512]
[1746710193413,0.2347492,99315.0,99314.0,0.2650512]
[1746710194321,0.2347492,99315.0,99314.0,0.3150512]
[1746710194522,0.2347492,99315.0,99314.0,0.2650512]
[1746710195117,0.2347492,99315.0,99314.0,0.2950512]
[1746710195622,0.2347492,99315.0,99314.0,0.2650512]
[1746710196214,0.003,99315.0,99314.0,0.3050512]
[1746710196417,0.2012919,99344.0,99321.0,0.0503341]
[1746710196717,0.2331028,99338.0,99333.0,0.5621127]
[1746710196925,0.2331033,99338.0,99337.0,0.2013046]
[1746710197119,0.0318,99338.0,99337.0,0.2513046]
[1746710197317,0.2331026,99338.0,99337.0,0.2513046]
[1746710197823,0.0318,99338.0,99337.0,0.2819046]
[1746710198224,0.2331026,99338.0,99337.0,0.2819046]
[1746710198519,0.0318,99338.0,99337.0,0.2819046]
[1746710199224,0.0338,99338.0,99337.0,0.29817839]
[1746710199727,0.2351026,99338.0,99337.0,0.29817839]
[1746710199919,0.2361026,99338.0,99337.0,0.29917839]
[1746710200925,0.2361026,99338.0,99337.0,0.30943627]
[1746710202319,0.2361026,99338.0,99337.0,0.29416248]
[1746710203826,0.0348,99338.0,99337.0,0.29416248]
[1746710204023,0.2361026,99338.0,99337.0,0.29416248]
[1746710204422,0.0348,99338.0,99337.0,0.2839046]
[1746710204823,0.0348,99338.0,99337.0,0.2533046]
[1746710206427,0.0348,99338.0,99337.0,0.2841046]
[1746710212330,0.0348,99338.0,99337.0,0.2992335]
[1746710213331,0.0348,99338.0,99337.0,0.2841046]
[1746710217635,0.0658,99338.0,99337.0,0.2841046]
[1746710217838,0.0658,99338.0,99337.0,0.2341046]
[1746710219335,0.2671026,99338.0,99337.0,0.2341046]
[1746710219539,0.0658,99338.0,99337.0,0.2033046]
[1746710219738,0.2671026,99338.0,99337.0,0.002]
[1746710220038,0.2671026,99338.0,99337.0,0.2033046]
[1746710222133,0.0658,99338.0,99337.0,0.2033046]
[1746710222337,0.0658,99338.0,99337.0,0.2345046]
[1746710222537,0.2671026,99338.0,99337.0,0.2696514]
[1746710223238,0.2671026,99338.0,99337.0,0.269652]
[1746710223436,0.2671026,99338.0,99337.0,0.2233046]
[1746710226454,0.2671026,99338.0,99337.0,0.2552046]
[1746710226653,0.2671026,99338.0,99337.0,0.2883046]
[1746710227556,0.2671026,99338.0,99337.0,0.2552046]
[1746710227945,0.2671026,99338.0,99337.0,0.022]
[1746710228151,0.2671026,99338.0,99337.0,0.002]
[1746710228449,0.72857061,99338.0,99337.0,0.002]
[1746710229157,0.89657061,99338.0,99337.0,0.002]
[1746710230550,0.7959026,99338.0,99337.0,0.002]
[1746710232856,0.89657061,99338.0,99337.0,0.002]
[1746710241563,0.7959026,99338.0,99337.0,0.002]
[1746710242861,0.89657061,99338.0,99337.0,0.002]
[1746710244263,0.7959026,99338.0,99337.0,0.002]
[1746710245163,0.7959026,99338.0,99337.0,0.035]
[1746710247262,0.7649026,99338.0,99337.0,0.035]
[1746710247467,0.3723026,99338.0,99337.0,0.2363046]
[1746710248169,0.2043026,99338.0,99337.0,0.2363046]
[1746710249665,0.2043026,99338.0,99337.0,0.5971046]
[1746710250670,0.003,99338.0,99337.0,0.5971046]
[1746710250857,0.2043026,99338.0,99337.0,0.5971046]
[1746710251061,0.003,99338.0,99337.0,0.5971046]
[1746710251268,0.003,99338.0,99337.0,0.7651046]
[1746710252570,0.2043026,99338.0,99337.0,0.7651046]
[1746710254971,0.2043026,99338.0,99337.0,0.7751046]
[1746710256573,0.003,99338.0,99337.0,0.7751046]
[1746710258268,0.002,99338.0,99337.0,0.7751046]
[1746710258977,0.001,99338.0,99337.0,0.7741046]
[1746710260366,0.001,99338.0,99337.0,0.9441046]
[1746710260567,0.00251,99347.0,99346.0,0.2012864]
[1746710260774,0.2012643,99357.0,99356.0,0.050316]
[1746710260973,0.2012643,99357.0,99356.0,0.06557567]
[1746710261371,0.2012643,99357.0,99356.0,0.36083758]
[1746710261573,0.2012643,99357.0,99356.0,0.36083742]
[1746710262372,0.2012643,99357.0,99356.0,0.36183742]
[1746710262566,0.2012643,99357.0,99356.0,0.36948391]
[1746710263276,0.2022643,99357.0,99356.0,0.37048391]
[1746710263972,0.2022643,99357.0,99356.0,0.35522449]
[1746710264768,0.2022643,99357.0,99356.0,0.30490849]
[1746710268680,0.2022643,99357.0,99356.0,0.32014574]
[1746710268880,0.2338643,99357.0,99356.0,0.32014574]
[1746710270282,0.2338643,99357.0,99356.0,0.30490849]
[1746710270680,0.2338643,99357.0,99356.0,0.32016725]
[1746710271677,0.2338643,99357.0,99356.0,0.30490849]
[1746710272495,0.2338643,99357.0,99356.0,0.32019175]
[1746710272980,0.2338643,99357.0,99356.0,0.30490849]
[1746710273279,0.2338643,99357.0,99356.0,0.32021878]
[1746710273484,0.001,99357.0,99356.0,0.32021878]
[1746710273982,0.2022641,99357.0,99356.0,0.32021878]
[1746710274183,0.001,99357.0,99356.0,0.32021878]
[1746710274382,0.2022641,99357.0,99356.0,0.34021878]
[1746710274974,0.2022641,99357.0,99356.0,0.32490849]
[1746710275281,0.001,99357.0,99356.0,0.34055693]
[1746710275786,0.2022641,99357.0,99356.0,0.34055693]
[1746710276175,0.2022641,99357.0,99356.0,0.50855693]
[1746710276483,0.001,99357.0,99356.0,0.50855693]
[1746710277087,0.001,99357.0,99356.0,0.50858069]
[1746710282181,0.001,99357.0,99356.0,0.50859489]
[1746710282382,0.001,99357.0,99356.0,0.51859489]
[1746710282578,0.001,99357.0,99356.0,0.49290849]
[1746710282889,0.00251,99361.0,99360.0,0.201258]
[1746710283085,0.0322,99365.0,99364.0,0.2012499]
[1746710283291,0.00151002,99377.0,99376.0,0.2012256]
[1746710283488,0.00151002,99377.0,99376.0,0.21691097]
[1746710283685,0.00151002,99377.0,99376.0,0.24981097]
[1746710284683,0.00151002,99377.0,99376.0,0.28241097]
[1746710284885,0.20273362,99377.0,99376.0,0.28241097]
[1746710285290,0.20573362,99377.0,99376.0,0.28341097]
[1746710285590,0.20573362,99377.0,99376.0,0.28345473]
[1746710285890,0.26963362,99377.0,99376.0,0.28545473]
[1746710286078,0.26963362,99377.0,99376.0,0.29545473]
[1746710286492,0.26763362,99377.0,99376.0,0.29445473]
[1746710286683,0.26763362,99377.0,99376.0,0.29545473]
[1746710286684,0.03331002,99377.0,99376.0,0.29545473]
[1746710286990,0.00251002,99377.0,99376.0,0.29545368]
[1746710287381,0.00251002,99377.0,99376.0,0.29545434]
[1746710288192,0.23703362,99377.0,99376.0,0.29545434]
[1746710288697,0.03581002,99377.0,99376.0,0.29545434]
[1746710289087,0.03581002,99377.0,99376.0,0.29545356]
[1746710289490,0.00251002,99377.0,99376.0,0.29545356]
[1746710289800,0.00251,99381.0,99376.0,0.29545356]
[1746710289801,0.41109,99409.0,99408.0,0.2011608]
[1746710289991,0.0502936,99404.0,99403.0,0.0502924]
[1746710290297,0.2514706,99404.0,99403.0,0.21689656]
[1746710290495,0.2822706,99404.0,99403.0,0.21689656]
[1746710290687,0.2822706,99404.0,99403.0,0.2011709]
[1746710290887,0.2822706,99404.0,99403.0,0.2168968]
[1746710291083,0.4835706,99404.0,99403.0,0.21689661]
[1746710291288,0.4845706,99404.0,99403.0,0.21689661]
[1746710291484,0.4845706,99404.0,99403.0,0.2011709]
[1746710291685,0.201173,99402.0,99401.0,0.2514674]
[1746710291990,0.201173,99402.0,99401.0,0.26719292]
[1746710292488,0.201173,99402.0,99401.0,0.21689932]
[1746710292692,0.201173,99402.0,99401.0,0.21789932]
[1746710292896,0.201173,99402.0,99401.0,0.2021738]
[1746710293094,0.201173,99402.0,99401.0,0.001]
[1746710293391,0.202173,99402.0,99401.0,0.001]
[1746710294099,0.370173,99402.0,99401.0,0.001]
[1746710298190,0.370173,99402.0,99387.0,0.0313]
[1746710298191,0.2012033,99387.0,99384.0,0.0503019]
[1746710298398,0.2012033,99387.0,99386.0,0.57773256]
[1746710298598,0.2012033,99387.0,99386.0,0.57773257]
[1746710299097,0.4339033,99387.0,99386.0,0.57773257]
[1746710299297,0.4349033,99387.0,99386.0,0.58073257]
[1746710299891,0.4349033,99387.0,99386.0,0.61353257]
[1746710300085,0.4349033,99387.0,99386.0,0.61253257]
[1746710300389,0.2679033,99387.0,99386.0,0.61553257]
[1746710300585,0.2679033,99387.0,99386.0,0.64793257]
[1746710300892,0.2669033,99387.0,99386.0,0.6302053]
[1746710301393,0.2659033,99387.0,99386.0,0.6272053]
[1746710301593,0.2669033,99387.0,99386.0,0.64293266]